bitfinex/quotes_ETHUSD_20240621
["timestamp","ask_amount","ask_price","bid_price","bid_amount"]
[1718941961003,0.49324873,3511.8,3511.0,0.3877]
[1718941961743,1.37024873,3511.8,3511.0,0.3877]
[1718941963009,0.877,3511.8,3511.0,0.3877]
[1718941963215,1.37025466,3511.8,3511.0,0.3877]
[1718941966156,0.49325466,3511.8,3511.0,0.3877]
[1718941966343,0.49325899,3511.8,3511.0,0.3877]
[1718941966647,3.2091,3511.9,3511.0,0.3877]
[1718941966949,0.49326022,3511.8,3511.0,0.3877]
[1718941967536,0.49325977,3511.8,3511.0,0.3877]
[1718941969458,0.49325694,3511.8,3511.0,0.3877]
[1718941970246,3.2091,3511.9,3511.0,0.3877]
[1718941970454,0.49324343,3511.8,3511.0,0.3877]
[1718941970820,0.49324343,3511.8,3511.1,0.877]
[1718941971026,0.49324343,3511.8,3511.3,0.877]
[1718941971346,0.49324343,3512.2,3511.4,0.32885]
[1718941972535,2.2839,3512.3,3511.4,0.32885]
[1718941972747,0.49314903,3512.2,3511.4,0.32885]
[1718941975869,0.49314744,3512.2,3511.4,0.32885]
[1718941976168,0.49314744,3512.2,3511.5,0.661735]
[1718941976742,0.877,3512.5,3511.5,0.661735]
[1718941976962,1.37014744,3512.5,3511.5,0.661735]
[1718941978352,0.877,3512.3,3511.4,0.32885]
[1718941979034,0.49314768,3512.5,3511.4,0.32885]
[1718941979228,0.877,3512.3,3511.4,0.32885]
[1718941981959,0.49314715,3512.5,3511.5,0.877]
[1718941982160,0.49314715,3512.5,3511.6,0.420585]
[1718941982331,0.49314715,3512.5,3511.7,2.3735]
[1718941982528,0.49314715,3512.5,3511.7,5.3735]
[1718941984353,3.2389,3512.6,3511.7,5.3735]
[1718941984664,0.49315145,3512.5,3511.7,5.3735]
[1718941984832,0.49315145,3512.5,3511.8,0.6671085]
[1718941985033,0.49315145,3512.5,3511.8,3.6671085]
[1718941985767,0.49315145,3512.5,3511.9,0.877]
[1718941985939,0.49315145,3512.8,3512.1,0.877]
[1718941986145,1.37015145,3513.2,3512.1,0.877]
[1718941986365,1.37015145,3513.2,3512.2,0.6305]
[1718941986878,0.877,3513.0,3512.2,0.6305]
[1718941992457,0.877,3512.8,3512.0,3.0]
[1718941992776,0.877,3512.6,3511.9,5.428]
[1718941995178,0.877,3512.8,3511.9,5.428]
[1718941995357,0.877,3512.8,3511.9,6.7955]
[1718941995556,0.4931388,3513.0,3511.9,6.7955]
[1718941995870,0.877,3512.8,3511.9,7.6725]
[1718941996295,0.4931388,3513.0,3511.9,7.6725]
[1718941996585,0.877,3512.8,3511.9,7.6725]
[1718941996898,0.877,3512.8,3512.0,1.50425]
[1718941997182,0.877,3512.8,3512.0,4.50425]
[1718941997486,0.49311996,3513.0,3512.0,3.0]
[1718941997487,0.877,3512.6,3512.0,3.0]
[1718941997659,3.3293,3512.6,3511.9,3.0]
[1718941997973,0.49311996,3512.5,3511.9,3.0]
[1718941999879,0.4931522,3512.5,3511.9,3.0]
[1718942000283,1.3701522,3512.4,3511.9,3.0]
[1718942000489,3.2046,3512.0,3511.2,9.8622]
[1718942000737,0.877,3511.8,3511.2,9.8622]
[1718942002220,0.4931522,3511.9,3511.2,9.8622]
[1718942002422,0.4931522,3511.9,3511.2,10.93612]
[1718942002575,0.4931522,3511.9,3511.3,3.0]
[1718942002772,1.37022238,3512.2,3511.3,3.0]
[1718942003567,0.49322238,3512.2,3511.3,3.0]
[1718942003785,0.877,3512.4,3511.4,1.481312]
[1718942004613,0.877,3512.2,3511.4,1.481312]
[1718942005812,0.877,3512.2,3511.5,0.05694698]
[1718942006335,0.877,3512.2,3511.4,1.481312]
[1718942006622,0.877,3512.2,3511.5,0.03487423]
[1718942007617,0.877,3512.2,3511.4,1.481312]
[1718942007824,0.877,3512.2,3511.3,3.0]
[1718942008803,1.37020127,3512.5,3511.4,3.1801]
[1718942009119,1.37018686,3512.5,3511.5,3.0]
[1718942010721,1.37018686,3512.5,3511.4,5.3031]
[1718942010898,1.37018686,3512.5,3511.4,6.65811]
[1718942011099,0.877,3512.3,3511.4,5.3031]
[1718942011303,0.877,3512.1,3511.3,3.0]
[1718942011503,1.37018686,3512.1,3511.3,3.0]
[1718942012121,0.877,3512.1,3511.3,3.0]
[1718942012323,1.37020697,3512.1,3511.3,3.0]
[1718942012623,1.37020697,3512.1,3511.3,4.35467]
[1718942013027,0.49320697,3512.1,3511.3,4.35467]
[1718942015220,0.877,3512.3,3511.3,4.35467]
[1718942015795,0.49320615,3512.4,3511.6,0.877]
[1718942018194,0.49320615,3512.4,3511.5,3.0]
[1718942018418,2.4639,3512.5,3511.6,1.542437]
[1718942018602,0.49318025,3512.4,3511.6,0.877]
[1718942020330,2.4639,3512.5,3511.6,0.877]
[1718942020546,0.49317605,3512.4,3511.6,1.630137]
[1718942021198,2.45707605,3512.5,3511.6,1.630137]
[1718942024412,2.45707605,3512.5,3511.6,0.753137]
[1718942024613,0.877,3512.4,3511.6,0.753137]
[1718942029500,0.877,3512.4,3511.5,3.0]
[1718942029797,0.877,3512.4,3511.4,5.2997]
[1718942031103,0.4931879,3512.3,3511.4,5.2997]
[1718942031304,0.877,3512.4,3511.4,5.2997]
[1718942031305,0.49318778,3512.2,3511.4,5.2997]
[1718942031540,0.49318778,3512.1,3511.4,6.789837]
[1718942031842,0.49318778,3512.3,3511.4,6.789837]
[1718942032002,0.49318778,3512.2,3511.4,6.789837]
[1718942032203,0.49318778,3512.1,3511.4,6.789837]
[1718942032408,0.877,3512.2,3511.4,5.2997]
[1718942032721,2.255,3512.0,3511.3,3.0]
[1718942032924,0.49318778,3511.9,3511.3,3.0]
[1718942033333,0.49318778,3511.9,3511.4,1.37113]
[1718942033636,2.255,3512.3,3511.4,1.37113]
[1718942033637,0.49318778,3512.2,3511.4,1.37113]
[1718942033952,0.877,3512.4,3511.4,1.37113]
[1718942033953,0.49318778,3512.1,3511.5,2.4643]
[1718942034129,0.49318778,3512.0,3511.5,6.972543]
[1718942034329,0.877,3512.4,3511.5,3.972543]
[1718942034631,0.49319212,3512.3,3511.6,3.0]
[1718942034831,0.877,3512.4,3511.6,3.0]
[1718942034832,0.49319213,3512.2,3511.6,3.0]
[1718942035016,0.49319213,3512.1,3511.6,3.0]
[1718942035218,0.49319213,3512.0,3511.6,3.0]
[1718942035451,0.49319213,3512.3,3511.6,3.0]
[1718942035747,0.49319187,3512.2,3511.6,3.0]
[1718942035968,0.49319187,3512.1,3511.6,3.0]
[1718942036249,0.49319187,3512.0,3511.6,3.0]
[1718942036405,0.877,3512.4,3511.6,3.0]
[1718942036406,0.49319187,3512.3,3511.6,3.0]
[1718942036613,0.49319187,3512.2,3511.6,3.0]
[1718942036821,0.49319187,3512.1,3511.6,3.0]
[1718942037139,0.49319187,3512.0,3511.6,3.0]
[1718942037334,0.49319187,3512.3,3511.6,3.0]
[1718942037636,0.49319187,3512.2,3511.5,2.4643]
[1718942037943,0.49319187,3512.1,3511.5,3.83543]
[1718942038247,0.49319187,3512.0,3511.6,3.0]
[1718942038552,0.877,3512.4,3511.6,3.0]
[1718942038553,0.49319187,3512.3,3511.6,3.0]
[1718942038715,0.49319187,3512.2,3511.6,3.0]
[1718942038916,0.49319187,3512.1,3511.6,3.0]
[1718942039245,0.49319187,3512.0,3511.6,3.0]
[1718942039452,0.49319187,3511.9,3511.6,3.0]
[1718942039751,0.49319187,3512.3,3511.6,3.0]
[1718942039954,0.49319187,3512.2,3511.6,3.0]
[1718942040126,0.877,3512.4,3511.6,3.0]
[1718942040127,0.49319187,3512.1,3511.6,3.0]
[1718942040341,0.49319187,3512.0,3511.6,3.0]
[1718942040529,0.877,3512.4,3511.6,3.0]
[1718942040726,0.49321131,3511.9,3511.6,3.0]
[1718942041052,0.877,3512.4,3511.6,3.683543]
[1718942041053,0.49321131,3512.3,3511.6,3.683543]
[1718942041253,0.49321131,3512.2,3511.6,3.0]
[1718942041419,0.877,3512.4,3511.6,3.0]
[1718942041420,0.49321131,3512.1,3511.6,3.0]
[1718942041620,0.49321131,3512.0,3511.6,3.0]
[1718942041852,0.49321131,3511.9,3511.6,3.0]
[1718942042057,0.49321131,3512.3,3511.6,3.0]
[1718942042238,0.877,3512.4,3511.5,2.4643]
[1718942042239,0.49321131,3512.2,3511.5,2.4643]
[1718942042437,0.49321131,3512.1,3511.5,3.83543]
[1718942042641,0.49321131,3512.0,3511.6,3.0]
[1718942042840,0.49321131,3511.9,3511.5,2.4643]
[1718942043158,0.49321126,3512.3,3511.5,2.4643]
[1718942043353,0.49321126,3512.2,3511.5,2.4643]
[1718942043657,0.49321126,3512.1,3511.5,2.4643]
[1718942043821,0.49321126,3512.0,3511.5,3.83543]
[1718942044023,0.49321126,3511.9,3511.6,3.0]
[1718942044262,0.49321126,3512.3,3511.5,2.4643]
[1718942044486,0.49321126,3512.2,3511.5,2.4643]
[1718942044757,0.49321126,3512.1,3511.5,2.4643]
[1718942044945,0.49321126,3512.0,3511.5,2.4643]
[1718942045150,0.49321126,3511.9,3511.5,2.4643]
[1718942045336,0.49321126,3512.2,3511.3,3.0]
[1718942045660,0.49321126,3512.1,3511.3,3.0]
[1718942045868,0.49321126,3512.0,3511.3,3.0]
[1718942046168,0.49321652,3511.9,3511.3,3.0]
[1718942046364,0.49321652,3512.3,3511.4,1.35364]
[1718942046533,0.49321652,3512.2,3511.4,1.35364]
[1718942046735,0.49321652,3512.1,3511.4,1.35364]
[1718942047040,0.49321652,3512.0,3511.4,1.35364]
[1718942047237,0.49321652,3512.3,3511.5,1.489004]
[1718942047450,0.877,3512.4,3511.5,1.489004]
[1718942047451,0.49321652,3512.2,3511.5,1.489004]
[1718942047651,0.49321652,3512.1,3511.3,3.0]
[1718942047966,0.49321652,3512.0,3511.3,3.0]
[1718942048268,0.49321652,3511.9,3511.3,2.998619]
[1718942048465,0.49321652,3512.3,3511.3,2.998619]
[1718942048668,0.877,3512.4,3511.3,2.998619]
[1718942048669,0.49321652,3512.2,3511.3,2.998619]
[1718942048865,0.49321652,3512.1,3511.4,1.3535019]
[1718942049035,0.49321652,3512.1,3511.3,2.998619]
[1718942049241,0.49321652,3512.0,3511.3,2.998619]
[1718942049570,0.877,3512.4,3511.3,2.998619]
[1718942049870,0.49321828,3512.3,3511.3,2.998619]
[1718942050058,0.49321828,3512.2,3511.3,4.3521209]
[1718942050371,0.49321499,3512.1,3511.3,4.3521209]
[1718942050591,0.49321499,3512.0,3511.3,4.3521209]
[1718942050739,0.877,3512.2,3511.3,4.3521209]
[1718942050740,0.49321499,3511.9,3511.3,4.3521209]
[1718942050939,0.49321499,3511.8,3511.3,4.3521209]
[1718942051167,0.877,3512.2,3511.3,4.3521209]
[1718942051168,0.49321499,3512.1,3511.3,4.3521209]
[1718942051472,0.49321499,3512.0,3511.3,4.3521209]
[1718942051643,0.49321499,3511.9,3511.3,4.3521209]
[1718942051844,0.49321499,3511.8,3511.3,4.3521209]
[1718942052045,0.49321499,3512.1,3511.3,4.3521209]
[1718942052247,0.877,3512.2,3511.3,4.3521209]
[1718942052449,0.49322362,3512.1,3511.3,4.3521209]
[1718942052755,0.49322362,3512.0,3511.3,4.3521209]
[1718942052952,0.49322362,3511.9,3511.3,2.998619]
[1718942053151,0.49322362,3511.8,3511.3,2.998619]
[1718942053370,0.49322362,3512.1,3511.3,2.998619]
[1718942053571,0.49322362,3512.0,3511.3,4.3521209]
[1718942053772,0.49322362,3511.9,3511.3,4.3521209]
[1718942053968,0.49322362,3511.8,3511.3,4.3521209]
[1718942054169,0.49322362,3512.1,3511.3,4.3521209]
[1718942054369,0.49322362,3512.0,3511.3,4.3521209]
[1718942054553,0.49322362,3511.9,3511.3,4.3521209]
[1718942054881,0.49322362,3512.1,3511.3,4.3521209]
[1718942055041,0.49322362,3512.0,3511.3,4.3521209]
[1718942055249,0.49322362,3511.9,3511.3,4.3521209]
[1718942055447,0.49321579,3512.1,3511.3,4.3521209]
[1718942055758,0.49321579,3512.0,3511.3,4.3521209]
[1718942056076,0.49321579,3511.9,3511.3,4.3521209]
[1718942056241,0.49321579,3512.1,3511.3,4.3521209]
[1718942056445,0.49321579,3512.0,3511.3,4.3521209]
[1718942056640,0.49321579,3511.9,3511.3,4.3521209]
[1718942056880,0.49321579,3511.8,3511.3,2.998619]
[1718942057059,0.49321579,3512.1,3511.3,2.998619]
[1718942057258,0.49321579,3512.0,3511.3,2.998619]
[1718942057584,0.49321579,3511.9,3511.3,2.998619]
[1718942057747,0.49321579,3511.8,3511.3,2.998619]
[1718942057942,0.49321579,3512.1,3511.3,2.998619]
[1718942058265,0.49321579,3512.0,3511.3,2.998619]
[1718942058659,0.49322096,3511.9,3511.3,2.998619]
[1718942058860,0.49322096,3511.8,3511.3,2.998619]
[1718942059058,0.49322096,3512.1,3511.3,2.998619]
[1718942059277,0.49322096,3512.0,3511.3,2.998619]
[1718942059499,0.49322096,3511.9,3511.3,2.998619]
[1718942059778,0.49322096,3511.8,3511.3,2.998619]
[1718942059977,0.49322096,3511.7,3511.3,2.998619]
[1718942060158,0.49322096,3512.1,3511.3,2.998619]
[1718942060355,0.49322096,3512.0,3511.2,5.2894]
[1718942060543,0.49322096,3511.9,3511.4,3.0]
[1718942060755,0.49322096,3511.8,3511.2,5.2894]
[1718942061084,0.49322096,3511.7,3511.2,5.2894]
[1718942061255,0.49322096,3512.0,3511.2,5.2894]
[1718942061554,0.877,3512.2,3511.2,5.2894]
[1718942061555,0.49322096,3511.9,3511.2,5.2894]
[1718942061761,0.49324255,3511.8,3511.2,5.2894]
[1718942061992,0.877,3512.2,3511.2,5.2894]
[1718942061993,0.49324255,3511.7,3511.2,5.2894]
[1718942062295,0.877,3512.2,3511.2,5.2894]
[1718942062506,0.82863931,3512.1,3511.2,5.2894]
[1718942062663,0.49323931,3512.0,3511.2,5.2894]
[1718942062986,0.3354,3512.1,3511.2,5.2894]
[1718942062987,0.49324705,3511.9,3511.2,5.2894]
[1718942063285,2.92694705,3511.8,3511.2,3.0]
[1718942063483,0.49324705,3511.7,3511.0,3.0]
[1718942063692,0.49324705,3511.6,3511.0,3.0]
[1718942063884,0.49324705,3511.5,3511.0,3.0]
[1718942064090,0.49324705,3511.7,3511.0,5.58344]
[1718942064290,0.49324705,3511.6,3511.0,5.58344]
[1718942064500,0.49324705,3511.5,3511.0,5.58344]
[1718942064692,2.4337,3511.8,3511.0,3.0]
[1718942064870,0.49327895,3511.7,3510.9,5.3074]
[1718942065188,0.49327895,3511.6,3510.9,5.3074]
[1718942065392,2.4337,3511.8,3510.9,5.3074]
[1718942065393,0.49327895,3511.7,3510.9,5.3074]
[1718942065691,0.49327895,3511.6,3510.9,6.57514]
[1718942065888,0.49327895,3511.7,3510.9,6.57514]
[1718942066194,0.49327895,3511.6,3510.9,6.57514]
[1718942066371,0.49327895,3511.7,3510.9,6.57514]
[1718942067191,0.49327895,3511.6,3511.0,1.482214]
[1718942067392,0.49327895,3511.7,3511.0,4.482214]
[1718942067593,0.49327895,3511.6,3511.0,4.482214]
[1718942067888,0.49327043,3511.7,3511.0,4.482214]
[1718942068096,0.49327043,3511.6,3511.0,4.482214]
[1718942068388,0.49327043,3511.7,3511.0,4.482214]
[1718942068764,0.49327043,3511.6,3511.0,1.482214]
[1718942068958,0.49327043,3511.5,3510.9,3.0]
[1718942069273,0.49327043,3511.7,3510.9,3.0]
[1718942069463,3.3107,3511.8,3510.9,3.0]
[1718942069464,0.49327043,3511.6,3510.9,3.0]
[1718942069796,0.49327043,3511.5,3510.9,4.27992]
[1718942070094,0.49327043,3511.7,3510.9,4.27992]
[1718942070300,0.49327043,3511.6,3510.9,4.27992]
[1718942070503,3.3107,3511.8,3510.9,4.27992]
[1718942070504,0.49327043,3511.7,3510.9,4.27992]
[1718942070686,1.37027043,3511.6,3510.9,3.0]
[1718942070994,0.877,3511.6,3510.8,2.3044]
[1718942071164,1.37029921,3511.6,3510.8,2.62254]
[1718942071359,0.877,3511.6,3510.8,2.62254]
[1718942071565,1.37029921,3511.6,3510.9,3.0]
[1718942071892,0.877,3511.6,3510.9,3.0]
[1718942072199,1.37029921,3511.6,3510.9,3.0]
[1718942072366,0.877,3511.6,3510.9,3.0]
[1718942074594,0.877,3511.6,3510.8,0.31814]
[1718942074792,1.37031019,3511.6,3510.8,0.31814]
[1718942075093,0.877,3511.6,3510.8,0.31814]
[1718942076277,1.37031082,3511.6,3510.8,0.31814]
[1718942076478,0.877,3511.6,3510.8,0.31814]
[1718942077116,0.49331082,3511.7,3510.8,0.31814]
[1718942077324,2.4337,3511.8,3510.8,0.31814]
[1718942077615,0.877,3511.6,3510.8,0.31814]
[1718942077919,0.877,3511.6,3510.9,0.331814]
[1718942079195,0.877,3511.6,3511.0,2.2666]
[1718942079373,0.877,3511.6,3511.0,5.2666]
[1718942079576,0.877,3511.6,3511.0,3.0]
[1718942079883,0.877,3511.6,3510.9,0.331814]
[1718942086581,0.49329549,3511.7,3511.1,3.207]
[1718942086916,0.49329549,3512.0,3511.2,3.0]
[1718942087110,0.49329549,3512.0,3511.1,2.33]
[1718942087111,0.877,3511.9,3511.1,5.33]
[1718942090599,1.37024378,3511.9,3511.1,5.33]
[1718942090921,0.877,3511.9,3511.1,5.87325037]
[1718942091283,1.3702438,3511.9,3511.1,5.87325037]
[1718942091494,0.877,3511.9,3511.1,5.87325037]
[1718942091696,1.3702438,3511.9,3511.1,5.87325037]
[1718942092013,0.877,3511.9,3511.2,0.67502504]
[1718942092215,0.877,3511.9,3511.2,3.67502504]
[1718942092602,1.3702438,3511.9,3511.2,3.67502504]
[1718942093007,0.877,3511.9,3511.2,3.67502504]
[1718942093191,0.49323979,3511.9,3511.2,3.67502504]
[1718942093516,0.49323979,3512.0,3511.3,0.6882025]
[1718942096027,3.2781,3512.1,3511.3,0.6882025]
[1718942096322,0.49324225,3512.0,3511.3,0.6882025]
[1718942096524,0.877,3511.7,3511.2,3.0]
[1718942096829,0.877,3511.7,3510.9,2.3561]
[1718942097338,2.4011,3512.1,3510.9,2.3561]
[1718942097339,1.37024225,3511.9,3510.9,2.3561]
[1718942097490,1.25413423,3511.9,3510.9,2.3561]
[1718942097826,0.62815407,3512.4,3510.8,3.0]
[1718942097827,2.3053,3511.6,3510.8,3.0]
[1718942098121,0.49324225,3511.5,3510.8,3.0]
[1718942099160,0.49331024,3511.5,3510.8,3.0]
[1718942101446,2.3053,3511.6,3510.8,3.0]
[1718942101761,2.3053,3511.6,3510.9,1.35575]
[1718942101762,0.49329527,3511.5,3510.9,1.35575]
[1718942104439,2.3053,3511.6,3510.9,1.35575]
[1718942104650,0.49328856,3511.5,3510.9,1.35575]
[1718942104955,2.3053,3511.6,3510.9,1.35575]
[1718942105160,0.49330074,3511.5,3510.9,1.35575]
[1718942105712,0.49330074,3511.5,3510.8,3.0]
[1718942105713,0.49329304,3511.5,3511.0,1.260275]
[1718942107534,2.3053,3511.6,3511.0,1.260275]
[1718942107735,0.49328491,3511.5,3511.0,1.260275]
[1718942108342,0.49328491,3511.5,3510.8,3.0]
[1718942110642,2.3053,3511.6,3510.8,3.0]
[1718942110844,0.49329705,3511.5,3510.8,3.0]
[1718942111439,3.17559705,3511.6,3510.8,3.0]
[1718942112046,0.877,3511.4,3510.7,7.37]
[1718942112653,2.07194072,3511.3,3510.7,7.37]
[1718942112832,2.07194072,3511.2,3511.0,0.877]
[1718942113032,0.877,3512.0,3511.1,2.2912]
[1718942113233,2.07171251,3511.9,3511.1,5.2912]
[1718942113553,2.07171251,3511.8,3511.1,5.2912]
[1718942113761,0.2856,3512.7,3511.1,5.2912]
[1718942114064,0.91944299,3512.8,3511.1,5.2912]
[1718942114065,0.877,3512.0,3511.1,5.2912]
[1718942114222,2.07164383,3511.9,3511.1,5.90802]
[1718942114417,2.07164383,3511.8,3511.1,5.90802]
[1718942114672,2.07164383,3511.7,3511.1,5.90802]
[1718942114826,2.07164383,3511.6,3511.2,0.678502]
[1718942115157,2.07164383,3511.5,3511.2,3.678502]
[1718942115359,2.07164383,3511.4,3511.2,3.678502]
[1718942115535,2.07164383,3511.3,3511.2,3.0]
[1718942115731,2.07164383,3511.3,3511.1,5.2912]
[1718942115935,2.07164383,3511.2,3511.1,5.2912]
[1718942116247,2.07164383,3511.8,3511.1,5.2912]
[1718942116563,2.07164383,3511.7,3511.1,5.2912]
[1718942116766,2.07164383,3511.6,3511.2,0.61682]
[1718942117056,4.14325793,3511.5,3511.2,3.61682]
[1718942117257,2.07163437,3511.5,3511.2,3.61682]
[1718942117460,2.07162436,3511.4,3511.3,0.678502]
[1718942118060,2.07162724,3511.4,3511.3,0.678502]
[1718942119429,2.07162724,3511.4,3511.2,3.0]
[1718942119625,2.07162724,3511.4,3510.9,2.3943]
[1718942120033,2.07163437,3511.5,3510.9,2.3943]
[1718942120328,4.44949826,3511.4,3510.8,3.0]
[1718942120532,2.07169826,3511.3,3510.8,3.0]
[1718942120734,2.07169826,3511.2,3510.8,3.0]
[1718942120957,2.07169826,3511.1,3510.8,3.0]
[1718942121160,2.07169826,3511.0,3510.8,3.0]
[1718942121329,2.56500565,3510.9,3510.7,2.3943]
[1718942121525,2.56500565,3510.8,3510.7,2.3943]
[1718942121844,2.56500565,3510.8,3510.7,3.02143]
[1718942122042,2.56500565,3510.8,3510.7,6.02143]
[1718942122634,2.56500627,3510.8,3510.7,6.02143]
[1718942123170,2.56520973,3510.8,3510.7,6.02143]
[1718942125668,2.56520973,3510.8,3510.7,3.0]
[1718942125832,2.56520973,3510.8,3510.3,7.37]
[1718942125833,2.56520973,3510.8,3510.4,3.0]
[1718942126031,2.3775,3511.0,3510.4,3.0]
[1718942126236,2.56541715,3510.9,3510.4,3.0]
[1718942126537,2.3775,3511.0,3510.4,3.0]
[1718942126538,2.56541715,3510.8,3510.4,3.0]
[1718942126742,2.56541715,3510.7,3510.4,3.0]
[1718942126969,2.56541715,3510.6,3510.4,3.0]
[1718942127258,4.87311715,3510.5,3510.4,3.0]
[1718942127463,4.87311715,3510.5,3509.8,3.877]
[1718942127659,2.56541715,3510.4,3509.8,3.0]
[1718942127960,2.3077,3510.5,3509.8,3.0]
[1718942127961,2.56541715,3510.3,3509.8,3.0]
[1718942128161,2.3077,3510.5,3509.9,1.27395]
[1718942128162,2.56541715,3510.2,3509.9,1.27395]
[1718942128365,2.56541715,3510.1,3509.9,1.27395]
[1718942128665,2.56541715,3510.0,3509.9,1.27395]
[1718942128963,2.56583561,3510.0,3509.9,1.27395]
[1718942129145,2.3077,3510.5,3509.9,1.27395]
[1718942129348,2.3077,3510.5,3509.8,3.877]
[1718942129349,0.49343002,3510.0,3509.8,3.877]
[1718942129545,2.3077,3510.8,3509.8,3.877]
[1718942129734,2.3077,3510.8,3510.0,0.877]
[1718942129735,2.56582151,3510.7,3510.0,0.877]
[1718942130067,2.56582151,3510.6,3510.0,0.877]
[1718942130251,2.56572395,3510.5,3510.0,0.877]
[1718942130564,2.56572395,3510.4,3510.0,2.23865]
[1718942130765,2.56572395,3510.3,3510.0,1.36165]
[1718942130958,2.3077,3510.8,3510.0,2.23865]
[1718942130959,2.56572395,3510.2,3510.0,2.23865]
[1718942131269,2.3077,3510.8,3510.1,0.523865]
[1718942131445,2.56561673,3510.7,3510.1,3.523865]
[1718942131645,2.56561673,3510.6,3510.1,3.523865]
[1718942131847,2.56561673,3510.5,3510.1,3.523865]
[1718942132172,2.56561673,3510.4,3510.2,0.5762515]
[1718942132341,2.56555761,3510.3,3510.1,3.0]
[1718942132541,2.07218115,3510.2,3510.0,2.23865]
[1718942132768,2.3077,3510.8,3510.0,2.23865]
[1718942133077,2.56555796,3510.7,3510.1,0.523865]
[1718942133276,2.07218143,3510.6,3510.1,3.523865]
[1718942133481,2.56555796,3510.6,3510.1,3.523865]
[1718942133652,2.56555796,3510.5,3510.1,3.523865]
[1718942133858,2.56555796,3510.4,3510.2,0.5762515]
[1718942134048,2.56555796,3510.3,3510.2,0.5762515]
[1718942135569,2.56564826,3510.3,3510.2,0.5762515]
[1718942136200,2.56564826,3510.3,3510.0,2.23865]
[1718942136411,2.56564826,3510.2,3510.0,2.23865]
[1718942136571,2.07225437,3510.1,3510.0,0.877]
[1718942136949,2.07232447,3510.1,3510.0,0.877]
[1718942137151,2.07232447,3510.7,3510.0,0.877]
[1718942137394,2.3077,3510.8,3510.0,0.877]
[1718942137395,2.56573484,3510.6,3510.0,0.877]
[1718942137605,2.56573484,3510.5,3510.0,0.877]
[1718942137801,2.07232447,3510.4,3510.0,2.23865]
[1718942138004,2.56573484,3510.4,3510.0,2.23865]
[1718942138299,2.56573484,3510.3,3510.0,2.23865]
[1718942138444,2.07232447,3510.2,3510.0,2.23865]
[1718942138646,2.07234062,3510.1,3510.0,2.23865]
[1718942138851,2.3077,3510.8,3510.0,0.877]
[1718942139156,0.49341599,3510.7,3510.0,0.877]
[1718942139660,0.49341599,3510.7,3509.9,0.877]
[1718942139860,0.49341599,3510.7,3510.0,0.62465]
[1718942140900,2.3077,3510.8,3510.0,0.62465]
[1718942142577,0.4934218,3510.7,3510.0,0.62465]
[1718942142812,0.4934218,3510.7,3509.8,3.0]
[1718942142985,1.3704218,3510.7,3509.7,2.3695]
[1718942143192,2.4127,3510.6,3509.7,2.3695]
[1718942143384,0.4934218,3510.5,3509.7,5.3695]
[1718942143625,0.49343082,3510.5,3509.7,7.03115]
[1718942144273,2.3709,3510.4,3509.7,3.0]
[1718942144499,0.877,3510.2,3509.5,3.0]
[1718942145577,0.49343082,3510.3,3509.5,3.0]
[1718942147523,0.49349038,3510.3,3509.5,3.0]
[1718942147683,0.49348651,3510.3,3509.5,3.0]
[1718942147883,3.2479,3510.4,3509.5,3.0]
[1718942148114,0.49348716,3510.3,3509.5,3.0]
[1718942148300,0.49348716,3510.3,3509.6,1.1247]
[1718942148499,2.3709,3510.4,3509.6,1.1247]
[1718942148690,0.49349072,3510.3,3509.6,1.1247]
[1718942148885,0.49349072,3510.3,3509.6,3.4635]
[1718942149083,0.49349072,3510.3,3509.7,3.0]
[1718942149486,0.49349072,3510.3,3509.7,4.68335]
[1718942150319,0.49349072,3510.5,3509.7,4.68335]
[1718942151025,0.49346207,3510.5,3509.7,4.68335]
[1718942152625,0.49346207,3510.5,3509.7,5.56035]
[1718942152827,0.49346207,3510.5,3510.0,2.4421]
[1718942153127,0.49346207,3510.7,3510.1,0.877]
[1718942153327,0.49346207,3510.7,3510.1,3.0]
[1718942153533,0.49346207,3511.0,3510.2,0.877]
[1718942153694,0.49346207,3511.0,3510.2,1.72121]
[1718942153894,0.49346207,3511.0,3510.2,4.72121]
[1718942154318,0.49346207,3511.0,3510.2,1.72121]
[1718942154807,0.49346207,3511.0,3510.2,0.84421]
[1718942155002,0.49346207,3511.0,3510.1,3.0]
[1718942155813,0.49346207,3511.0,3510.0,3.3191]
[1718942156014,0.49346207,3511.0,3510.1,3.0]
[1718942157432,0.4933879,3511.0,3510.1,3.0]
[1718942158196,1.3703879,3511.0,3510.1,3.0]
[1718942158428,1.3703879,3511.0,3510.2,0.63191]
[1718942160442,1.37038197,3511.0,3510.2,0.63191]
[1718942160845,0.49338197,3511.0,3510.2,0.63191]
[1718942162761,0.4933764,3511.0,3510.2,0.63191]
[1718942164567,0.4933764,3511.0,3510.3,2.2988]
[1718942164745,0.4933764,3511.3,3510.4,0.877]
[1718942164953,1.3703764,3511.3,3510.4,3.877]
[1718942165760,0.877,3511.3,3510.4,3.877]
[1718942165988,1.37033811,3511.3,3510.4,4.49458]
[1718942166266,0.877,3511.3,3510.4,4.49458]
[1718942166413,1.37033808,3511.3,3510.4,4.49458]
[1718942167337,1.37033808,3511.3,3510.4,3.61758]
[1718942167546,2.4393,3511.2,3510.4,3.61758]
[1718942167729,1.37033808,3511.1,3510.2,3.877]
[1718942167930,1.37033808,3511.1,3510.2,3.0]
[1718942168161,1.37033808,3511.1,3510.1,5.4353]
[1718942168442,1.37033808,3511.1,3510.2,0.63123]
[1718942168646,1.37033808,3511.1,3510.2,3.63123]
[1718942168847,0.877,3511.1,3510.2,3.63123]
[1718942169148,1.37035373,3511.1,3510.2,3.63123]
[1718942171968,0.877,3511.1,3510.2,3.63123]
[1718942172167,1.37035572,3511.1,3510.3,0.694353]